bitfinex-derivatives/quotes_SOLF0:USTF0_20260218
["timestamp","ask_amount","ask_price","bid_price","bid_amount"]
[1771415705106,7.66250621,83.319,83.271,75.58]
[1771415705808,7.66250621,83.314,83.271,75.58]
[1771415706808,7.66250621,83.314,83.271,80.7928065]
[1771415707011,7.66250621,83.314,83.272,5.2128065]
[1771415708211,7.66250621,83.305,83.26,5.24571607]
[1771415708412,7.66250621,83.305,83.261,75.58]
[1771415708609,7.66250621,83.305,83.27,2.07501875]
[1771415709312,7.66250621,83.319,83.29,2.07501875]
[1771415709514,7.66250621,83.331,83.29,2.07501875]
[1771415709817,7.66250621,83.331,83.291,75.58]
[1771415710311,7.66250621,83.331,83.292,87.5]
[1771415710513,7.66250621,83.331,83.29,2.07501875]
[1771415710713,7.66250621,83.329,83.293,87.52]
[1771415711315,10.8058,83.326,83.293,87.52]
[1771415711710,18.46830621,83.326,83.293,87.52]
[1771415711914,7.66250621,83.323,83.281,5.2469694]
[1771415712116,7.66250621,83.323,83.282,75.6]
[1771415712814,7.66250621,83.352,83.311,5.25256059]
[1771415713215,7.66250621,83.339,83.3,2.07501875]
[1771415713714,7.66250621,83.339,83.3,77.67501875]
[1771415714721,10.8049,83.333,83.3,77.67501875]
[1771415718729,7.66250621,83.339,83.3,77.67501875]
[1771415719125,7.66250621,83.339,83.3,82.96117258]
[1771415719329,10.8052,83.331,83.3,82.96117258]
[1771415720028,10.8052,83.331,83.301,5.28621342]
[1771415721333,10.8043,83.338,83.301,5.28621342]
[1771415724935,10.8031,83.347,83.31,2.07501875]
[1771415725336,7.96699764,83.346,83.31,2.07501875]
[1771415725535,10.8036,83.343,83.31,2.07501875]
[1771415725739,18.77059764,83.343,83.301,5.28621342]
[1771415726736,7.96699764,83.342,83.301,5.28621342]
[1771415730541,7.96699764,83.342,83.3,77.67501875]
[1771415730542,7.96699764,83.342,83.303,5.29251105]
[1771415734943,7.96699764,83.339,83.303,5.29251105]
[1771415735137,7.96699764,83.339,83.304,88.28]
[1771415736343,7.96699764,83.339,83.305,5.3106611]
[1771415745148,8.20293974,83.349,83.305,5.3106611]
[1771415745354,8.20293974,83.349,83.304,88.28]
[1771415745552,8.20293974,83.349,83.304,94.11211225]
[1771415745847,8.20293974,83.339,83.289,5.83211225]
[1771415746048,8.20293974,83.339,83.291,5.83211225]
[1771415746456,8.20293974,83.339,83.292,88.8]
[1771415746756,8.20293974,83.331,83.292,88.8]
[1771415747953,8.20293974,83.331,83.293,5.84101454]
[1771415751556,8.20293974,83.331,83.295,5.94190246]
[1771415752356,8.20293974,83.331,83.296,89.08]
[1771415754765,8.20293974,83.331,83.297,5.94846133]
[1771415758160,7.65611189,83.349,83.301,5.93749485]
[1771415760067,7.65611189,83.349,83.302,10.8088]
[1771415761263,7.65611189,83.349,83.309,10.8079]
[1771415763169,7.65611189,83.339,83.309,10.8079]
[1771415763368,7.65611189,83.339,83.303,89.62]
[1771415763567,7.65611189,83.339,83.291,5.94141521]
[1771415763867,7.65611189,83.339,83.293,5.94216578]
[1771415764064,7.65611189,83.339,83.294,75.58]
[1771415764368,7.65611189,83.339,83.295,89.62]
[1771415765669,7.65611189,83.339,83.295,95.57832286]
[1771415768061,7.65611189,83.329,83.281,5.9474902]
[1771415768270,7.65611189,83.329,83.283,5.95706159]
[1771415768466,7.65611189,83.329,83.29,8.03112836]
[1771415768664,7.65611189,83.329,83.29,5.95706159]
[1771415769168,7.65611189,83.329,83.291,5.95706159]
[1771415780373,7.71921155,83.327,83.291,5.95706159]
[1771415782784,10.806,83.325,83.291,5.95706159]
[1771415783378,18.52521155,83.325,83.291,5.95706159]
[1771415783579,7.71921155,83.313,83.267,5.93359247]
[1771415783782,7.71921155,83.313,83.271,5.93359247]
[1771415784486,7.71921155,83.313,83.272,5.96246599]
[1771415784684,7.71921155,83.313,83.28,2.07406677]
[1771415786185,7.71921155,83.313,83.272,5.96246599]
[1771415791896,7.71921155,83.313,83.28,2.07406677]
[1771415796099,7.71921155,83.313,83.272,5.96246599]
[1771415797806,7.71921155,83.309,83.272,5.96246599]
[1771415798394,7.71921155,83.309,83.28,2.07406677]
[1771415800003,7.71921155,83.309,83.281,5.88674207]
[1771415800208,7.71921155,83.318,83.281,5.88674207]
[1771415801910,10.8077,83.311,83.282,90.94]
[1771415802206,10.8077,83.311,83.282,96.83655276]
[1771415803908,7.71921155,83.328,83.283,5.87810956]
[1771415804100,7.71921155,83.327,83.291,5.87810956]
[1771415804300,7.71921155,83.327,83.284,91.04]
[1771415804710,7.71921155,83.311,83.285,91.06]
[1771415805704,8.01226169,83.309,83.285,91.06]
[1771415806911,10.8081,83.308,83.285,91.06]
[1771415807112,8.01226169,83.307,83.285,91.06]
[1771415807508,8.01226169,83.305,83.285,91.06]
[1771415812611,8.01226169,83.299,83.255,5.85931879]
[1771415812811,8.01226169,83.299,83.257,5.85931879]
[1771415813320,8.01226169,83.299,83.258,75.6]
[1771415813519,8.01226169,83.299,83.258,81.45959857]
[1771415813721,8.01226169,83.299,83.259,5.85959857]
[1771415814416,8.01226169,83.297,83.259,5.85959857]
[1771415818424,8.13374448,83.289,83.228,5.72997885]
[1771415818723,8.13374448,83.289,83.241,5.72997885]
[1771415819718,8.13374448,83.287,83.241,5.72997885]
[1771415820923,8.13374448,83.285,83.241,5.72997885]
[1771415821924,8.13374448,83.274,83.241,5.72997885]
[1771415822120,8.13374448,83.269,83.22,2.07406677]
[1771415822315,8.13374448,83.259,83.217,5.75161093]
[1771415822518,8.13374448,83.254,83.217,5.75161093]
[1771415822924,8.13374448,83.249,83.201,5.74916303]
[1771415823723,8.13374448,83.239,83.201,5.74916303]
[1771415824822,8.13374448,83.254,83.211,5.73077562]
[1771415825024,8.13374448,83.265,83.23,7.80484239]
[1771415825326,8.13374448,83.265,83.231,5.73077562]
[1771415826428,8.13374448,83.265,83.22,7.88604102]
[1771415826623,8.13374448,83.265,83.221,5.81197425]
[1771415827731,8.13374448,83.259,83.221,5.81197425]
[1771415828331,8.13374448,83.249,83.198,5.70071578]
[1771415828528,8.13374448,83.239,83.198,5.70071578]
[1771415828719,8.13374448,83.239,83.201,5.70071578]
[1771415829724,8.13374448,83.263,83.22,2.07406677]
[1771415829928,8.13374448,83.263,83.221,5.70102718]
[1771415831927,10.8128,83.272,83.231,5.83617536]
[1771415832121,8.13374448,83.274,83.231,5.83617536]
[1771415833932,8.13374448,83.299,83.251,5.72027339]
[1771415834724,10.8099,83.295,83.251,5.72027339]
[1771415835032,8.13374448,83.299,83.251,5.72027339]
[1771415838729,8.13374448,83.299,83.261,5.61650126]
[1771415839726,2.07756632,83.27,83.226,5.61511512]
[1771415839932,7.88676019,83.269,83.226,5.61511512]
[1771415847138,2.07756632,83.26,83.226,5.61511512]
[1771415849142,7.88676019,83.295,83.251,5.79662426]
[1771415851847,2.07756632,83.3,83.251,5.79662426]
[1771415852249,7.88676019,83.299,83.251,5.79662426]
[1771415853143,7.88676019,83.279,83.231,5.69940024]
[1771415853342,11.13463892,83.34,83.197,36.02]
[1771415853343,2.07756632,83.29,83.241,5.69832556]
[1771415853550,7.88676019,83.289,83.241,5.69832556]
[1771415853743,7.88676019,83.289,83.251,5.69832556]
[1771415854139,7.88676019,83.279,83.238,5.69832556]
[1771415854441,7.88676019,83.279,83.24,2.07756632]
[1771415855744,7.88676019,83.279,83.238,5.69832556]
[1771415858343,7.88676019,83.278,83.238,5.69832556]
[1771415860943,7.88676019,83.278,83.21,75.64]
[1771415860944,7.88676019,83.274,83.2,12.02]
[1771415861151,7.88676019,83.274,83.1,168.5458]
[1771415861152,8.46918914,83.209,83.099,36.02]
[1771415861354,8.46918914,83.209,83.01,168.7286]
[1771415861355,8.46904695,83.139,83.07,2.07756632]
[1771415861550,168.3604,83.193,83.07,2.07756632]
[1771415861551,2.07756632,83.12,83.07,2.07756632]
[1771415861955,2.07756632,83.11,83.07,2.07756632]
[1771415862648,8.46904695,83.119,83.06,2.07756632]
[1771415862855,8.49515918,83.145,83.08,2.07756632]
[1771415863051,2.07756632,83.13,83.081,0.02180385]
[1771415863249,75.64,83.167,83.048,36.02]
[1771415863250,2.07756632,83.11,83.048,0.02579819]
[1771415863444,2.07756632,83.09,83.048,0.02579819]
[1771415863856,14.70497227,83.1,83.048,0.02579819]
[1771415865345,8.74243487,83.099,83.048,0.02579819]
[1771415865545,8.74243487,83.099,83.01,6.20994787]
[1771415865746,8.74243487,83.079,82.99,6.20994787]
[1771415865957,8.74243487,83.078,82.991,75.64]
[1771415866252,8.74243487,83.078,82.99,6.20994787]
[1771415866447,8.74243487,83.078,83.01,6.20994787]
[1771415866959,8.77308522,83.097,83.01,6.20994787]
[1771415867150,8.77308522,83.097,83.011,75.62]
[1771415867354,8.77308522,83.097,83.012,89.94]
[1771415867749,8.77308522,83.097,83.013,89.96]
[1771415867953,8.77308522,83.097,83.03,6.20994787]
[1771415868150,8.77308522,83.097,83.03,81.84994787]
[1771415868457,8.77301726,83.113,83.031,90.0]
[1771415869355,8.90265924,83.139,83.05,6.20994787]
[1771415869554,8.90265924,83.139,83.07,6.20994787]
[1771415870456,8.93044235,83.119,83.065,75.64]
[1771415870653,8.93044235,83.119,83.059,90.1]
[1771415871259,8.93044235,83.119,83.05,6.20994787]
[1771415871454,8.93044235,83.119,83.051,75.64]
[1771415871662,8.93044235,83.119,83.04,6.20994787]
[1771415871856,8.930408,83.099,83.02,6.20994787]
[1771415872154,8.930408,83.099,83.03,6.20994787]
[1771415872360,8.930408,83.099,83.031,75.64]
[1771415873460,8.930408,83.099,83.03,6.20994787]
[1771415873660,8.930408,83.099,83.031,76.22]
[1771415875060,8.930408,83.099,83.032,10.844]
[1771415875757,8.930408,83.099,83.043,10.8425]
[1771415875954,10.8303,83.137,83.043,10.8425]
[1771415875955,9.14276125,83.119,83.05,6.20994787]
[1771415876664,9.14276125,83.119,83.052,10.8414]
[1771415877163,9.14276125,83.119,83.053,90.02]
[1771415877364,9.14276125,83.119,83.052,10.8414]
[1771415877365,9.14276125,83.119,83.054,90.02]
[1771415878860,9.14276125,83.119,83.05,6.20994787]
[1771415878861,9.14276125,83.119,83.039,10.843]
[1771415879065,9.14276125,83.119,83.055,90.06]
[1771415879265,9.14276125,83.119,83.056,90.06]
[1771415879461,9.15808971,83.089,82.965,21.7055]
[1771415879667,9.15808971,83.089,83.004,90.12]
[1771415879868,9.15808971,83.079,83.0,6.20994787]
[1771415880363,9.15808971,83.079,83.004,90.46]
[1771415881867,9.15808971,83.079,83.005,10.8475]
[1771415882370,9.15808971,83.079,83.02,6.20994787]
[1771415882966,9.15808971,83.079,83.021,75.64]
[1771415883364,9.15808971,83.079,83.02,6.20994787]
[1771415883970,9.15808971,83.079,83.021,75.66]
[1771415886571,9.15808971,83.079,83.022,90.8]
[1771415887466,9.15808971,83.079,83.023,90.82]
[1771415887667,8.93819777,83.069,83.0,6.20994787]
[1771415887862,8.93819777,83.069,83.004,75.66]
[1771415888072,8.93819777,83.059,83.005,90.96]
[1771415888969,10.8413,83.053,82.98,6.20994787]
[1771415889170,8.66962018,83.052,83.003,15.25721562]
[1771415889674,8.66962018,83.052,83.004,75.66]
[1771415890374,8.66962018,83.052,83.003,15.25721562]
[1771415890572,8.66962018,83.052,83.004,91.0]
[1771415891668,8.66962018,83.052,83.003,15.25721562]
[1771415892474,8.66962018,83.052,83.003,106.31721562]
[1771415892871,8.66962018,83.052,83.003,15.25721562]
[1771415893068,7.77666494,83.009,82.957,75.66]
[1771415893274,6.21648248,83.02,82.959,7.70820896]
[1771415893570,6.21648248,83.02,82.961,7.70820896]
[1771415893762,7.77666494,83.024,82.961,7.70820896]
[1771415893967,7.77666494,83.024,82.919,36.02]
[1771415893968,7.77666494,83.024,82.963,7.70820896]
[1771415894270,7.77666494,83.024,82.919,36.02]
[1771415894271,7.77666494,83.009,82.941,7.70820896]
[1771415894669,7.77666494,83.009,82.951,7.84052214]
[1771415894871,8.21388691,83.039,82.953,7.84052214]
[1771415895069,8.21388691,83.039,82.955,7.84052214]
[1771415895574,8.21388691,83.039,82.957,7.84052214]
[1771415895974,8.21388691,83.039,82.959,7.84052214]
[1771415896175,8.21388691,83.039,82.971,7.84052214]
[1771415896370,8.21388691,83.039,82.967,86.76]
[1771415896671,8.21388691,83.039,82.968,7.84052214]
[1771415897468,8.21388691,83.039,82.97,7.84052214]
[1771415898373,8.21388691,83.039,82.972,7.84052214]
[1771415898568,75.66,83.088,82.945,7.84052214]
[1771415898569,8.21388691,83.031,82.945,7.84052214]
[1771415898775,8.21388691,83.019,82.947,7.84052214]
[1771415898971,6.21648248,83.05,82.946,81.12]
[1771415898972,8.21388691,83.035,82.951,7.84052214]
[1771415899364,8.21388691,83.035,82.95,6.21648248]
[1771415899365,8.21388691,83.035,82.953,7.84052214]
[1771415899568,8.21388691,83.035,82.955,7.84052214]
[1771415900270,8.21388691,83.035,82.95,6.21648248]
[1771415900271,8.21388691,83.035,82.957,7.84052214]
[1771415902075,8.21388691,83.035,82.887,12.02]
[1771415902076,8.21388691,83.009,82.901,7.84052214]
[1771415902274,8.21388691,82.989,82.911,7.84052214]
[1771415902773,8.21388691,82.989,82.913,7.84052214]
[1771415903070,8.21388691,82.989,82.914,75.66]
[1771415903273,8.21388691,82.976,82.916,7.84052214]
[1771415904177,8.21388691,82.976,82.896,7.84052214]
[1771415904477,8.21388691,82.946,82.865,7.84052214]
[1771415904677,168.7013,83.025,82.891,7.84052214]
[1771415904678,8.21388691,82.955,82.891,7.84052214]
[1771415904881,8.21388691,82.955,82.893,7.84052214]
[1771415905274,8.21388691,82.955,82.895,7.84052214]
[1771415905780,8.21388691,82.955,82.897,7.84052214]
[1771415906775,8.21388691,82.955,82.896,91.54]
[1771415907076,8.21388691,82.955,82.897,7.84052214]
[1771415907476,8.21388691,82.955,82.899,7.84052214]
[1771415907678,8.21388691,82.955,82.881,7.84052214]
[1771415907878,8.21388691,82.955,82.889,7.84052214]
[1771415908684,19.06908691,82.947,82.889,7.84052214]
[1771415908880,19.06908691,82.947,82.89,81.44]
[1771415909278,8.21388691,82.942,82.889,7.84052214]
[1771415909582,8.21388691,82.939,82.879,91.74]
[1771415909882,8.21388691,82.929,82.855,7.84052214]
[1771415910085,8.21388691,82.949,82.871,7.84052214]
[1771415910482,10.8578,82.927,82.872,91.76]
[1771415910685,8.21388691,82.929,82.872,99.64052214]
[1771415911086,8.21388691,82.929,82.872,7.84052214]
[1771415911382,8.21388691,82.929,82.738,169.2831]
[1771415911581,8.21388691,82.904,82.82,6.21648248]
[1771415912183,8.21388691,82.902,82.84,6.21648248]
[1771415912481,6.21648248,82.95,82.84,6.21648248]
[1771415912482,8.21388691,82.929,82.84,6.21648248]
[1771415912785,6.21648248,82.93,82.84,6.21648248]
[1771415912786,8.21388691,82.924,82.841,75.68]
[1771415913179,8.21388691,82.924,82.836,10.8697]
[1771415913489,8.21388691,82.924,82.841,6.6216801]
[1771415913683,8.21388691,82.924,82.843,6.6216801]
[1771415913986,8.21388691,82.918,82.846,6.6216801]
[1771415914196,8.21388691,82.918,82.842,75.68]
[1771415915687,8.21388691,82.918,82.845,10.8684]
[1771415916784,8.21388691,82.918,82.84,6.21648248]
[1771415917089,8.75255727,82.913,82.841,75.68]
[1771415917483,8.75255727,82.913,82.853,10.8674]
[1771415917785,8.75258024,82.928,82.853,10.8674]
[1771415917995,8.75258024,82.928,82.86,6.21648248]
[1771415918289,8.75258024,82.928,82.862,0.06514532]
[1771415918790,21.7043,82.97,82.846,0.06514532]
[1771415918791,8.72393683,82.912,82.846,0.06514532]
[1771415919178,8.72393683,82.912,82.84,6.21648248]
[1771415919179,10.8626,82.89,82.827,0.06514532]
[1771415919384,8.72393683,82.889,82.827,0.06514532]
[1771415920487,10.8629,82.888,82.827,0.06514532]
[1771415920787,8.63040565,82.879,82.815,75.68]
[1771415921090,8.63040565,82.879,82.821,0.29085819]
[1771415923187,8.76291315,82.893,82.823,0.06370536]
[1771415923392,8.76294528,82.919,82.841,0.08213272]
[1771415923782,8.76294528,82.919,82.845,0.08213272]
[1771415923993,8.76294528,82.919,82.847,0.08213272]
[1771415925290,8.77939645,82.917,82.831,0.0872274]
[1771415925788,8.77939645,82.917,82.832,75.68]
[1771415925985,8.77949678,82.899,82.833,75.68]
[1771415926182,8.77949678,82.899,82.832,0.1048699]
[1771415926386,8.77949678,82.899,82.832,80.1248699]
[1771415926792,8.73728043,82.929,82.841,0.20697927]
[1771415927292,6.21648248,82.91,82.844,0.20697927]
[1771415927497,8.73728529,82.909,82.837,75.68]
[1771415927698,57.73,82.949,82.825,0.22438272]
[1771415927699,8.73728529,82.889,82.825,0.22438272]
[1771415928394,8.73728529,82.889,82.827,0.27598728]
[1771415929690,8.73728529,82.889,82.833,11.16308664]
[1771415929887,8.72010695,82.906,82.834,0.29308664]
[1771415930090,8.72010695,82.906,82.835,0.29308664]
[1771415930287,8.72010695,82.906,82.834,91.94]
[1771415930288,8.72010695,82.906,82.845,10.8685]
[1771415930487,8.72010695,82.906,82.845,11.18278767]
[1771415930698,8.7178394,82.902,82.827,0.31428767]
[1771415930891,8.7178394,82.902,82.828,91.92]
[1771415931092,8.7178394,82.902,82.833,10.8699]
[1771415931693,8.71782565,82.899,82.829,0.33112825]
[1771415931899,8.71782565,82.899,82.833,91.9]
[1771415932295,8.71782565,82.899,82.801,0.26384886]
[1771415932593,8.71782565,82.899,82.8,6.21648248]
[1771415932594,8.7597289,82.889,82.803,0.26384886]
[1771415933185,8.7597289,82.889,82.819,0.26384886]
[1771415933400,8.7597289,82.889,82.821,0.28008903]
[1771415933593,8.7597289,82.889,82.822,75.7]
[1771415933993,8.75975398,82.887,82.824,10.8712]
[1771415934494,8.73529322,82.903,82.831,0.34499129]
[1771415934791,8.73529322,82.896,82.831,0.34499129]
[1771415935298,8.73529586,82.879,82.811,0.34499129]
[1771415935597,8.73529586,82.879,82.812,90.52]
[1771415935794,8.73529586,82.879,82.813,0.36096134]
[1771415935996,8.73529586,82.879,82.819,10.8719]
[1771415936190,8.73529586,82.899,82.83,6.21648248]
[1771415936397,8.73529586,82.899,82.831,0.37792699]
[1771415936894,8.73529586,82.899,82.84,10.8691]
[1771415937491,8.73529586,82.899,82.847,10.8682]
[1771415937790,8.66122651,82.915,82.851,0.55676196]
[1771415937995,8.66122651,82.915,82.862,10.8662]
[1771415938297,8.66122651,82.915,82.853,0.55676196]
[1771415938590,8.66122651,82.915,82.854,75.7]
[1771415938795,8.66122651,82.915,82.855,0.91666793]
[1771415938995,8.66122651,82.915,82.866,10.8657]
[1771415939591,8.66122651,82.915,82.865,10.8659]
[1771415940296,8.66122651,82.915,82.866,91.7]
[1771415940898,8.66122651,82.915,82.868,10.8655]
[1771415941498,8.66122651,82.915,82.869,91.7]
[1771415941797,8.66122651,82.915,82.871,10.8651]
[1771415942195,8.66122651,82.915,82.869,91.7]
[1771415943394,8.66122651,82.915,82.865,91.74]
[1771415943898,8.66122651,82.915,82.841,0.9510176]
[1771415944095,8.66122651,82.915,82.842,91.76]
[1771415944295,8.50824163,82.911,82.843,10.8687]
[1771415944697,8.50824163,82.911,82.841,0.9510176]
[1771415944698,8.50824163,82.911,82.844,91.74]
[1771415944899,8.50494591,82.879,82.805,0.97178213]
[1771415945398,8.50494591,82.879,82.808,0.98621877]
[1771415945801,8.50476784,82.878,82.809,91.84]
[1771415946198,8.50476784,82.878,82.808,0.98621877]
[1771415946502,8.50138029,82.874,82.81,1.00706551]
[1771415947401,8.50138029,82.874,82.811,1.02133375]
[1771415947803,10.865,82.872,82.811,1.02133375]
[1771415948101,19.36620188,82.872,82.811,1.02133375]
[1771415948502,8.50656049,82.866,82.811,1.02133375]
[1771415948703,8.50656049,82.866,82.793,1.02420106]
[1771415948908,8.50656049,82.866,82.795,1.02420106]
[1771415949703,6.21648248,82.88,82.795,1.02420106]
[1771415949704,8.50639202,82.861,82.795,1.02420106]
[1771415950310,8.50639202,82.861,82.796,92.83129302]
[1771415950505,8.50639202,82.861,82.797,91.76]
[1771415950705,8.45364076,82.859,82.798,1.15679554]
[1771415950915,8.45364076,82.879,82.801,1.15679554]
[1771415951407,8.45343819,82.869,82.803,1.15679554]
[1771415951710,8.45343819,82.869,82.804,76.89032991]
[1771415951906,8.45343819,82.869,82.804,1.17032991]
[1771415952106,8.45343819,82.869,82.805,91.78]
[1771415952505,8.22491267,82.866,82.735,8.44548507]
[1771415952710,521.42755138,82.913,82.761,8.44548507]
[1771415952711,8.22491267,82.839,82.761,8.44548507]
[1771415953113,8.22491267,82.839,82.76,6.24481026]
[1771415953114,8.22491267,82.839,82.764,8.44548507]
[1771415953305,8.22491267,82.859,82.781,8.44548507]
[1771415953505,8.22491267,82.859,82.783,8.44548507]
[1771415954107,8.22491267,82.859,82.785,8.44548507]
[1771415954409,8.22491267,82.859,82.791,8.44548507]
[1771415954716,14.85202765,82.88,82.794,8.44548507]
[1771415954922,8.60721739,82.879,82.794,8.44548507]
[1771415955117,8.60721739,82.879,82.811,8.25600186]
[1771415955820,8.60721739,82.879,82.813,8.25600186]
[1771415956814,8.60721739,82.879,82.817,8.25600186]
[1771415957412,8.60721739,82.896,82.831,8.25600186]
[1771415957612,8.60721739,82.896,82.833,8.25600186]
[1771415958217,8.60721739,82.913,82.835,8.25600186]
[1771415958417,8.60721739,82.895,82.833,8.25600186]
[1771415958914,8.60721739,82.865,82.78,6.24481026]
[1771415959217,8.60721739,82.859,82.782,8.25600186]
[1771415959619,8.60721739,82.859,82.784,8.25600186]
[1771415960019,8.60721739,82.858,82.784,8.25600186]
[1771415962914,8.60721739,82.858,82.785,92.3]
[1771415963120,8.60721739,82.858,82.787,8.25600186]
[1771415963518,8.60721739,82.858,82.79,6.24481026]
[1771415963720,8.60721739,82.875,82.811,8.25600186]
[1771415963918,8.60721739,82.875,82.813,8.25600186]
[1771415964121,8.60721739,82.869,82.796,8.25600186]
[1771415964523,8.60721739,82.849,82.796,8.25600186]
[1771415967028,8.60721739,82.829,82.757,8.25600186]
[1771415967225,8.60721739,82.829,82.758,8.25600186]
[1771415967426,8.60721739,82.829,82.771,8.25600186]
[1771415967930,8.60721739,82.839,82.771,8.25600186]
[1771415968126,8.60721739,82.829,82.771,8.25600186]
[1771415969721,10.871,82.827,82.771,8.25600186]
[1771415971325,17.70923987,82.821,82.771,8.25600186]
[1771415971524,17.70923987,82.821,82.733,10.8832]
[1771415971525,6.83753987,82.82,82.75,8.25600186]
[1771415971725,6.83753987,82.82,82.752,8.25600186]
[1771415971925,111.76,82.868,82.751,75.74]
[1771415971926,6.83753987,82.839,82.761,8.25600186]
[1771415972626,6.83753987,82.839,82.763,8.25600186]
[1771415972826,6.83753987,82.839,82.765,8.25600186]
[1771415973431,6.83753987,82.839,82.767,8.25600186]
[1771415973632,6.83753987,82.839,82.769,8.25600186]
[1771415973926,5.71999785,82.838,82.769,8.25600186]
[1771415974727,4.78822904,82.833,82.769,8.25600186]
[1771415975032,4.78822904,82.833,82.771,8.25600186]
[1771415976131,4.78822904,82.833,82.773,8.25600186]
[1771415977722,4.71423952,82.85,82.78,6.24481026]
[1771415977924,4.71423952,82.85,82.781,8.25600186]
[1771415978323,10.868,82.849,82.783,8.25600186]
[1771415979040,4.71423952,82.85,82.785,8.25600186]
[1771415979437,4.71423952,82.85,82.787,8.25600186]
[1771415980136,4.71423952,82.85,82.786,75.74]
[1771415980137,4.71423952,82.85,82.792,8.25600186]
[1771415981636,4.71423952,82.85,82.799,10.8745]
[1771415984241,4.50025987,82.839,82.776,8.25600186]
[1771415985239,3.88059724,82.83,82.776,85.19600186]
[1771415985645,3.88059724,82.83,82.777,84.34]
[1771415986041,3.88059724,82.83,82.777,88.08069719]
[1771415987139,3.88059724,82.83,82.778,3.74069719]
[1771415987338,3.88059724,82.83,82.756,22.9501]
[1771415987339,3.88059724,82.83,82.78,3.74069719]
[1771415990047,3.88059724,82.83,82.781,92.04]
[1771415990746,10.8716,82.822,82.781,92.04]
[1771415992045,3.88059724,82.817,82.752,3.74069719]
[1771415992247,3.88059724,82.817,82.754,3.74069719]
[1771415992442,3.88059724,82.817,82.755,92.04]
[1771415992740,3.88059724,82.817,82.756,92.06]
[1771415992947,6.24481026,82.82,82.757,3.74069719]
[1771415992948,14.75379724,82.81,82.757,3.74069719]
[1771415993646,10.874,82.804,82.757,3.74069719]
[1771415994648,10.8748,82.797,82.757,3.74069719]
[1771415995551,10.8748,82.797,82.758,92.16]
[1771415995743,10.8748,82.797,82.758,95.90069719]
[1771415996449,10.8757,82.791,82.759,92.18]
[1771415997052,10.8747,82.798,82.759,92.18]
[1771415997251,3.88059724,82.81,82.759,92.18]
[1771415997653,10.8724,82.815,82.76,3.77249221]
[1771415997952,10.8724,82.815,82.762,3.77249221]
[1771415999252,3.8109318,82.81,82.763,92.2]
[1771415999742,3.8109318,82.81,82.763,95.97249221]
[1771415999940,10.8734,82.808,82.764,3.77249221]
[1771416000144,3.8109318,82.839,82.764,3.77249221]
[1771416000345,10.8694,82.838,82.767,3.77249221]
[1771416000950,3.8109318,82.825,82.767,3.77249221]
[1771416001151,3.8109318,82.825,82.768,75.76]
[1771416001356,3.8109318,82.825,82.769,3.77249221]
[1771416001950,3.8109318,82.825,82.77,92.26]
[1771416002649,3.8109318,82.812,82.742,3.77249221]
[1771416002951,3.8109318,82.812,82.745,3.77249221]
[1771416003153,3.8109318,82.81,82.745,3.77249221]
[1771416003352,3.8109318,82.81,82.747,3.77249221]
[1771416003751,3.8109318,82.81,82.749,3.77249221]
[1771416004054,3.8109318,82.81,82.748,75.76]
[1771416004055,10.8722,82.817,82.752,3.77249221]
[1771416004248,3.8109318,82.823,82.752,3.77249221]
[1771416004550,10.8724,82.816,82.752,3.77249221]
[1771416005054,3.8109318,82.823,82.752,3.77249221]
[1771416005254,3.8109318,82.822,82.753,92.22]
[1771416005453,3.8109318,82.822,82.754,3.77249221]
[1771416005853,10.8725,82.815,82.754,3.77249221]
[1771416006049,10.8725,82.815,82.756,3.77249221]
[1771416006248,3.8109318,82.837,82.771,3.77249221]
[1771416006547,3.8109318,82.837,82.773,3.77249221]
[1771416007653,3.8109318,82.849,82.775,3.77249221]
[1771416007852,3.8109318,82.849,82.776,91.4]
[1771416008048,3.8109318,82.849,82.777,3.77249221]
[1771416008246,3.8109318,82.849,82.778,75.76]
[1771416008455,3.8109318,82.836,82.779,3.77249221]
[1771416008647,3.8109318,82.836,82.731,3.77249221]
[1771416008954,3.8109318,82.809,82.741,3.77249221]
[1771416009151,3.8109318,82.809,82.703,12.07]
[1771416009152,3.8109318,82.809,82.743,3.77249221]
[1771416009354,3.8109318,82.832,82.751,3.77249221]
[1771416009650,3.8109318,82.832,82.774,3.77249221]
[1771416009852,3.8109318,82.832,82.775,75.78]
[1771416010156,3.8109318,82.832,82.776,92.36]
[1771416010452,3.8109318,82.819,82.74,3.77249221]
[1771416010653,3.8109318,82.799,82.74,92.46]
[1771416010955,6.24481026,82.8,82.741,92.48]
[1771416010956,3.8109318,82.793,82.741,92.48]
[1771416011248,3.8109318,82.793,82.738,92.5]
[1771416011453,3.8109318,82.793,82.727,3.77249221]
[1771416011654,3.8109318,82.793,82.729,3.77249221]
[1771416012547,3.8109318,82.793,82.73,92.5]